[Event "FRA-ch Youth U12 2018"]
[Site "Agen"]
[Date "2018.04.17"]
[Round "4"]
[White "Patole, Noam"]
[Black "Maurizzi, Marc Andria"]
[Result "1-0"]
[ECO "C07"]
[WhiteElo "1903"]
[BlackElo "2119"]
[Annotator "NA"]
[PlyCount "125"]
[EventDate "2018.??.??"]
[EventType "swiss"]
[EventCountry "FRA"]
[SourceTitle "playchess.com"]
[Source "ChessBase"]
[SourceQuality "1"]
[TimeControl "5400+30"]

1. e4 {[%emt 0:00:00]} e6 {[%emt 0:00:05]} 2. d4 {[%emt 0:00:00]} d5 {[%emt 0:00:01]} 3. Nd2 {[%emt 0:00:31]} c5 {[%emt 0:00:02]} 4. exd5 {[%emt 0:02:10]} Qxd5 {[%emt 0:00:34]} 5. Ngf3 {[%emt 0:00:47]} cxd4 {[%emt 0:00:08]} 6. Bc4 {[%emt 0:00:28]} Qd8 {[%emt 0:00:12]} 7. O-O {[%emt 0:02:06]} Nc6 {[%emt 0:00:39]} 8. Nb3 {[%emt 0:00:39]} a6 {[%emt 0:00:12] C07: French Tarrasch: 3...c5, 4 Ngf3 and 4 exd5 Qxd5} 9. Nbxd4 {[%emt 0:02:42]} Nxd4 {[%emt 0:03:16]} 10. Qxd4 {[%emt 0:02:06]} (10. Nxd4 Qc7 11. Bd3 Nf6 12. Re1 Bd6 13. h3 O-O 14. Bg5 Be5 15. c3 h6 16. Nf3 Bxc3 {1-0 (51) Mamedov,R (2709)-Le,Q (2737) Huaian 2017}) 10... Qxd4 {[%emt 0:01:23]} 11. Nxd4 {[%emt 0:00:12]} Bd7 {[%emt 0:02:24] LiveBook: 7 Games} 12. Be3 {[%emt 0:04:35]} Rc8 {[%emt 0:01:22]} 13. Bd3 $146 {[%emt 0:00:44]} ({Predecessor:} 13. Bb3 Bc5 14. c3 Nf6 15. Rfe1 O-O 16. Nc2 Bxe3 17. Nxe3 {1-0 (27) Cejda,C (1335)-Watzlawik,L (1170) Oberhof 2013}) 13... Nf6 {[%emt 0:00:34]} 14. Rfe1 {[%emt 0:01:01]} Be7 {[%emt 0:01:34]} 15. c3 {[%emt 0:06:31]} O-O {[%emt 0:05:17]} 16. Rad1 {[%emt 0:02:23]} Nd5 {[%emt 0:09:31]} 17. Be4 {[%emt 0:01:55]} Nxe3 {[%emt 0:01:36]} 18. Rxe3 {[%emt 0:02:00]} Rc7 {[%emt 0:03:31]} 19. Red3 {[%emt 0:07:20]} Bc8 {[%emt 0:05:03]} 20. g3 {[%emt 0:05:11]} g6 {[%emt 0:08:01]} 21. Bg2 {[%emt 0:07:07]} e5 {[%emt 0:00:32]} 22. Ne2 {[%emt 0:00:39]} Bg4 {[%emt 0:02:13]} 23. f3 {[%emt 0:01:30]} Bc5+ {[%emt 0:02:06]} 24. Kf1 {[%emt 0:00:24]} Be6 {[%emt 0:01:14]} 25. b3 {[%emt 0:02:02]} f5 {[%emt 0:00:29]} 26. Rd8 {[%emt 0:01:16]} Rcf7 {[%emt 0:00:30]} 27. Rxf8+ {[%emt 0:00:42]} Kxf8 {[%emt 0:00:42]} 28. f4 {[%emt 0:01:07]} e4 {[%emt 0:00:18]} 29. Nd4 {[%emt 0:01:53]} Bc8 {[%emt 0:00:53]} 30. Nc6 {[%emt 0:08:00]} Rd7 {[%emt 0:00:17]} ({Don't do} 30... bxc6 31. Rd8+ Ke7 32. Rxc8 $15) 31. Rxd7 {[%emt 0:00:31]} Bxd7 {[%emt 0:00:02]} 32. Nd4 {[%emt 0:01:13]} Ke7 {[%emt 0:06:28]} 33. Ke2 {[%emt 0:02:46]} a5 {[%emt 0:00:44]} 34. Kd2 {[%emt 0:01:44]} b5 {[%emt 0:00:28]} 35. Ne2 {[%emt 0:01:07]} Kd6 {[%emt 0:01:11]} 36. Kc2 {[%emt 0:02:10]} Be6 {[%emt 0:01:07]} 37. Kb2 {[%emt 0:01:19]} Bd5 {[%emt 0:02:24]} 38. Kc2 {[%emt 0:02:15]} a4 {[%emt 0:00:37]} 39. Nc1 {[%emt 0:02:44]} h6 {[%emt 0:02:04]} 40. h4 {[%emt 0:01:17]} Bf2 {[%emt 0:03:38]} 41. Ne2 {[%emt 0:00:33]} Kc5 {[%emt 0:00:24]} 42. Kb2 {[%emt 0:01:56]} e3 {[%emt 0:03:58]} 43. Bxd5 {[%emt 0:00:20]} Kxd5 {[%emt 0:00:07]} 44. Kc2 $19 {[%emt 0:01:03]} Ke4 {[%emt 0:00:20]} 45. c4 {[%emt 0:11:55]} axb3+ {[%emt 0:00:43]} 46. axb3 {[%emt 0:00:08]} bxc4 {[%emt 0:00:35]} 47. bxc4 {[%emt 0:00:18]} h5 {[%emt 0:05:14]} 48. Kd1 {[%emt 0:00:34]} Bxg3 {[%emt 0:01:49]} 49. Nxg3+ {[%emt 0:03:25]} Kxf4 {[%emt 0:00:07]} 50. Ne2+ {[%emt 0:00:42]} Ke4 {[%emt 0:00:06]} 51. Ke1 {[%emt 0:02:55]} Ke5 {[%emt 0:01:06]} 52. c5 {[%emt 0:01:29]} Kd5 {[%emt 0:00:17]} 53. Nf4+ {[%emt 0:00:09]} Kxc5 54. Nxg6 {[%emt 0:00:10]} Kd5 {[%emt 0:00:34]} 55. Nf4+ {[%emt 0:00:07]} Ke4 {[%emt 0:00:08]} 56. Nxh5 {[%emt 0:00:07]} f4 {[%emt 0:00:10]} 57. Ng7 {[%emt 0:01:02]} f3 {[%emt 0:01:08]} 58. Ne6 {[%emt 0:03:06]} Kd3 {[%emt 0:02:11]} 59. Ng5 {[%emt 0:01:04]} f2+ {[%emt 0:00:35]} 60. Kf1 {[%emt 0:00:06]} Kd2 {[%emt 0:00:14]} 61. Ne4+ {[%emt 0:00:08]} Kd3 {[%emt 0:00:21]} 62. Nxf2+ {[%emt 0:00:30]} Kd4 {[%emt 0:00:00]} 63. Ng4 {[%emt 0:00:16]} 1-0

[Event "FRA-ch Youth U12 2018"]
[Site "Agen"]
[Date "2018.04.17"]
[Round "4"]
[White "Zachary, Bastian"]
[Black "Bat, Bilguun"]
[Result "1-0"]
[ECO "E15"]
[WhiteElo "1884"]
[BlackElo "1951"]
[Annotator "NA"]
[PlyCount "133"]
[EventDate "2018.??.??"]
[EventType "swiss"]
[EventCountry "FRA"]
[SourceTitle "playchess.com"]
[Source "ChessBase"]
[SourceQuality "1"]
[TimeControl "5400+30"]

1. d4 {[%emt 0:00:00]} Nf6 {[%emt 0:00:10]} 2. c4 {[%emt 0:00:00]} e6 {[%emt 0:00:05]} 3. Nf3 {[%emt 0:00:18]} b6 {[%emt 0:00:24]} 4. g3 {[%emt 0:03:08]} Bb4+ {[%emt 0:00:36]} 5. Bd2 {[%emt 0:04:49]} Bxd2+ {[%emt 0:00:11]} 6. Nbxd2 {[%emt 0:00:09]} Bb7 {[%emt 0:00:08]} 7. Bg2 {[%emt 0:00:16] LiveBook: 89 Games} O-O {[%emt 0:00:13]} 8. O-O {[%emt 0:00:27]} c5 {[%emt 0:00:03]} 9. e3 {[%emt 0:02:22] E16: Queen's Indian: 4 g3 Bb7 5 Bg2 Bb4+} (9. Qa4 Nc6 10. e3 cxd4 11. Nxd4 a6 12. Rfd1 Qc7 13. Nxc6 Bxc6 14. Bxc6 dxc6 15. Qc2 c5 16. Ne4 Nxe4 17. Qxe4 {½-½ (40) Palo,D (2562)-Shirov,A (2709) Tromsoe 2014}) 9... Nc6 {[%emt 0:02:59]} 10. Nb3 {[%emt 0:03:44]} d6 {[%emt 0:00:20]} 11. Re1 $146 {[%emt 0:03:01]} ({Predecessor:} 11. Qe2 Qe7 12. Rac1 Rac8 13. Rfd1 Nb4 14. a3 Na6 15. Nh4 Bxg2 16. Nxg2 Qb7 {0-1 (37) Bielicki,B (2225)-Damm,S Zell 1993}) 11... Ne7 {[%emt 0:03:28]} 12. Rc1 {[%emt 0:05:30]} Rc8 {[%emt 0:02:29]} 13. Nfd2 {[%emt 0:05:13]} Bxg2 {[%emt 0:00:32]} 14. Kxg2 {[%emt 0:00:06]} cxd4 {[%emt 0:00:45]} 15. exd4 {[%emt 0:01:28]} d5 {[%emt 0:00:17]} 16. c5 {[%emt 0:00:24]} Nc6 {[%emt 0:04:45]} 17. Nf3 {[%emt 0:04:39]} Nd7 {[%emt 0:06:51]} 18. Qd2 {[%emt 0:05:13]} a5 {[%emt 0:08:36]} 19. cxb6 {[%emt 0:01:48]} Qxb6 {[%emt 0:01:08]} 20. Nc5 {[%emt 0:01:58]} Nxc5 {[%emt 0:00:15]} 21. Rxc5 {[%emt 0:01:56]} Rb8 {[%emt 0:13:56]} 22. Rec1 {[%emt 0:03:09]} Ne7 {[%emt 0:00:23]} 23. b3 {[%emt 0:05:02]} Ra8 {[%emt 0:01:59]} 24. Ne5 {[%emt 0:01:54]} Qb4 {[%emt 0:04:52]} 25. Qxb4 {[%emt 0:01:17]} axb4 {[%emt 0:00:09]} 26. R1c2 {[%emt 0:00:31]} Nf5 {[%emt 0:01:04]} 27. Nc6 {[%emt 0:02:16]} h5 $14 {[%emt 0:06:07]} 28. h3 {[%emt 0:04:30]} g5 {[%emt 0:07:01]} 29. Rd2 {[%emt 0:05:31]} Nd6 {[%emt 0:03:31]} 30. Rcc2 {[%emt 0:05:41]} g4 {[%emt 0:05:43]} 31. Nxb4 {[%emt 0:02:38]} Ne4 {[%emt 0:00:31]} 32. Re2 {[%emt 0:01:34]} Ng5 {[%emt 0:00:55]} 33. hxg4 {[%emt 0:02:36]} hxg4 {[%emt 0:00:09]} 34. Nc6 {[%emt 0:01:29]} Nf3 {[%emt 0:00:34]} 35. Rc1 {[%emt 0:02:28]} Kg7 {[%emt 0:00:10]} 36. Ne5 {[%emt 0:02:39]} Nxd4 {[%emt 0:01:12]} 37. Rd2 {[%emt 0:00:07]} Nf5 {[%emt 0:04:25]} 38. Nxg4 {[%emt 0:00:11]} Ra3 {[%emt 0:01:32]} 39. Ne3 {[%emt 0:01:15]} Nd6 {[%emt 0:00:48]} 40. f3 {[%emt 0:02:03]} Rfa8 {[%emt 0:00:55]} 41. Rcc2 {[%emt 0:00:09]} Kf8 {[%emt 0:00:30]} 42. Nd1 {[%emt 0:00:36]} Ke7 {[%emt 0:00:36]} 43. Nc3 {[%emt 0:00:38]} R3a7 {[%emt 0:01:02]} 44. Na4 {[%emt 0:00:22]} Rh8 {[%emt 0:00:14]} 45. Rd1 {[%emt 0:00:34]} Nf5 {[%emt 0:00:11]} 46. Re2 {[%emt 0:00:29]} Kd6 {[%emt 0:00:56]} 47. Nc3 {[%emt 0:00:53]} Rb7 {[%emt 0:02:02]} 48. Ne4+ {[%emt 0:00:13]} Ke7 {[%emt 0:02:30]} 49. Nc5 {[%emt 0:01:41]} Rb5 {[%emt 0:00:12]} 50. Rxd5 {[%emt 0:01:54]} Rc8 {[%emt 0:00:14]} 51. Rxf5 {[%emt 0:00:11]} Rbxc5 {[%emt 0:00:10]} 52. Rxc5 {[%emt 0:00:08]} Rxc5 {[%emt 0:00:04]} 53. Rb2 {[%emt 0:00:10]} f5 {[%emt 0:00:29]} 54. Kf2 {[%emt 0:00:08]} e5 {[%emt 0:00:07]} 55. b4 {[%emt 0:00:06]} Rc8 {[%emt 0:00:20]} 56. b5 {[%emt 0:00:09]} Rh8 {[%emt 0:00:25]} 57. Ke3 {[%emt 0:00:09]} Kd7 {[%emt 0:00:21]} 58. b6 {[%emt 0:00:13]} Kc8 {[%emt 0:00:03]} 59. Rb5 {[%emt 0:00:15]} Re8 {[%emt 0:00:16]} 60. b7+ {[%emt 0:00:22]} Kb8 {[%emt 0:00:04]} 61. f4 {[%emt 0:00:06]} exf4+ {[%emt 0:00:13]} 62. Kxf4 {[%emt 0:00:09]} Rg8 {[%emt 0:00:09]} 63. Rb3 {[%emt 0:00:34]} Rf8 {[%emt 0:00:16]} 64. a4 {[%emt 0:00:17]} Rd8 {[%emt 0:00:55]} 65. Kxf5 {[%emt 0:00:25]} Rd5+ {[%emt 0:00:04]} 66. Ke4 {[%emt 0:00:52]} Ra5 {[%emt 0:00:17]} 67. Rb4 {[%emt 0:00:11]} 1-0

[Event "FRA-ch Youth U12 2018"]
[Site "Agen"]
[Date "2018.04.17"]
[Round "4"]
[White "Berezovsky, Fiorina"]
[Black "Schebacher, Solene"]
[Result "0-1"]
[ECO "B34"]
[WhiteElo "1678"]
[BlackElo "1396"]
[Annotator "NA"]
[PlyCount "114"]
[EventDate "2018.??.??"]
[EventType "swiss"]
[EventCountry "FRA"]
[SourceTitle "playchess.com"]
[Source "ChessBase"]
[SourceQuality "1"]
[TimeControl "5400+30"]

1. e4 {[%emt 0:00:00]} c5 {[%emt 0:00:20]} 2. Nf3 {[%emt 0:00:13]} Nc6 {[%emt 0:00:27]} 3. d4 {[%emt 0:00:52]} cxd4 {[%emt 0:00:29]} 4. Nxd4 {[%emt 0:00:25]} g6 {[%emt 0:00:45]} 5. Nc3 {[%emt 0:01:18]} Bg7 {[%emt 0:00:46]} 6. Be3 {[%emt 0:01:06]} d6 {[%emt 0:01:46]} 7. Bc4 {[%emt 0:01:27]} Nf6 {[%emt 0:01:26]} 8. h3 {[%emt 0:04:35]} O-O {[%emt 0:03:05]} 9. Qd2 {[%emt 0:03:21]} Bd7 {[%emt 0:02:11]} 10. O-O-O {[%emt 0:01:26]} Rc8 {[%emt 0:03:45]} 11. Bb3 {[%emt 0:03:32]} Ne5 {[%emt 0:03:36]} 12. f4 {[%emt 0:02:11]} Nc4 {[%emt 0:01:43]} 13. Bxc4 {[%emt 0:01:08]} Rxc4 {[%emt 0:00:16]} 14. g4 {[%emt 0:03:06]} a6 {[%emt 0:03:42]} 15. g5 {[%emt 0:03:57]} Nh5 {[%emt 0:02:42]} 16. f5 {[%emt 0:01:50]} b5 {[%emt 0:03:41]} 17. b3 {[%emt 0:08:54]} Rc8 {[%emt 0:02:27]} 18. Nd5 {[%emt 0:05:12]} Bh8 {[%emt 0:13:18]} 19. Rhg1 {[%emt 0:08:03]} Bc6 {[%emt 0:07:47]} 20. fxg6 {[%emt 0:08:29]} hxg6 {[%emt 0:02:00]} 21. Nxc6 {[%emt 0:02:29]} Rxc6 {[%emt 0:00:34]} 22. Bd4 {[%emt 0:03:45]} Re8 {[%emt 0:08:02]} 23. Bxh8 {[%emt 0:01:56]} Kxh8 {[%emt 0:00:13]} 24. Rdf1 {[%emt 0:01:37]} Rf8 {[%emt 0:01:44]} 25. Nf4 {[%emt 0:01:38]} Nxf4 {[%emt 0:02:41]} 26. Rxf4 {[%emt 0:01:49]} Qb6 {[%emt 0:00:55]} 27. Rgf1 {[%emt 0:02:17]} Kg7 {[%emt 0:01:02]} 28. h4 {[%emt 0:01:01]} Rcc8 {[%emt 0:02:31]} 29. Qe2 {[%emt 0:03:21]} Qc5 {[%emt 0:02:36]} 30. Kb1 {[%emt 0:04:09]} Qc3 {[%emt 0:04:43]} 31. Qf2 {[%emt 0:01:30]} f6 {[%emt 0:03:20]} 32. gxf6+ {[%emt 0:04:00]} Rxf6 {[%emt 0:02:59]} 33. Rxf6 {[%emt 0:01:00]} Qxf6 {[%emt 0:01:22]} 34. Qe1 {[%emt 0:03:29]} Qd4 {[%emt 0:03:54]} 35. Rh1 {[%emt 0:01:37]} Qc5 {[%emt 0:02:28]} 36. Qe2 {[%emt 0:00:42]} Rh8 {[%emt 0:00:37]} 37. Qg4 {[%emt 0:02:10]} Qh5 {[%emt 0:01:18]} 38. Qg3 {[%emt 0:00:42]} Qe5 {[%emt 0:00:52]} 39. Qg2 {[%emt 0:00:50]} Rh5 {[%emt 0:01:29]} 40. Qf3 {[%emt 0:01:25]} Qf6 {[%emt 0:01:04]} 41. Qg4 {[%emt 0:01:12]} Qe5 {[%emt 0:02:45]} 42. Rf1 {[%emt 0:01:07]} Rh8 {[%emt 0:01:34]} 43. Qf3 {[%emt 0:00:28]} Qe6 {[%emt 0:01:03]} 44. Rh1 {[%emt 0:01:45]} Qf6 {[%emt 0:00:36]} 45. Qg4 {[%emt 0:01:05]} Qe5 {[%emt 0:00:21]} 46. Rf1 {[%emt 0:00:21]} Rd8 {[%emt 0:01:04]} 47. Qf3 {[%emt 0:00:55]} Qf6 {[%emt 0:01:03]} 48. Qh1 {[%emt 0:00:58]} Qe5 {[%emt 0:00:21]} 49. Rf2 {[%emt 0:00:46]} d5 {[%emt 0:00:56]} 50. exd5 {[%emt 0:00:23]} Rxd5 {[%emt 0:00:26]} 51. Qf1 {[%emt 0:00:54]} Qe6 {[%emt 0:00:36]} 52. Qg1 {[%emt 0:01:53]} Qd6 {[%emt 0:00:37]} 53. Rf1 {[%emt 0:00:26]} Qd7 {[%emt 0:01:07]} 54. Kb2 {[%emt 0:01:10]} Qd6 {[%emt 0:00:35]} 55. Qf2 {[%emt 0:00:41]} Rf5 {[%emt 0:00:12]} 56. Qe2 {[%emt 0:00:30]} Qf6+ {[%emt 0:00:08]} 57. c3 {[%emt 0:00:47]} Rxf1 {[%emt 0:00:11]} 0-1

[Event "FRA-ch Youth U12 2018"]
[Site "Agen"]
[Date "2018.04.17"]
[Round "4"]
[White "Bousmaha, Leila"]
[Black "Fougerat, Emma"]
[Result "1/2-1/2"]
[ECO "B06"]
[WhiteElo "1538"]
[BlackElo "1271"]
[Annotator "NA"]
[PlyCount "99"]
[EventDate "2018.??.??"]
[EventType "swiss"]
[EventCountry "FRA"]
[SourceTitle "playchess.com"]
[Source "ChessBase"]
[SourceQuality "1"]
[TimeControl "5400+30"]

1. e4 {[%emt 0:00:18]} g6 {[%emt 0:00:09]} 2. d4 {[%emt 0:00:06]} Bg7 {[%emt 0:00:25]} 3. c4 {[%emt 0:00:42]} c5 {[%emt 0:01:11]} 4. Nf3 {[%emt 0:00:31]} Nc6 {[%emt 0:00:37]} 5. Be3 {[%emt 0:00:55]} Qb6 {[%emt 0:01:20]} 6. Nc3 {[%emt 0:15:30]} cxd4 {[%emt 0:07:48]} 7. Nd5 {[%emt 0:00:23]} Qa5+ {[%emt 0:02:04]} 8. Qd2 {[%emt 0:01:53]} dxe3 {[%emt 0:04:45]} 9. Qxa5 {[%emt 0:00:37]} exf2+ {[%emt 0:00:29]} 10. Kxf2 {[%emt 0:00:22]} Nxa5 {[%emt 0:00:20]} 11. Nc7+ {[%emt 0:00:30]} Kd8 {[%emt 0:00:18]} 12. Nxa8 {[%emt 0:00:10]} b6 {[%emt 0:01:26]} 13. Rb1 {[%emt 0:01:31]} Bb7 {[%emt 0:03:53]} 14. b4 {[%emt 0:02:19]} Nc6 {[%emt 0:01:07]} 15. Nxb6 {[%emt 0:00:23]} axb6 {[%emt 0:00:27]} 16. Bd3 {[%emt 0:01:02]} Nf6 {[%emt 0:03:38]} 17. h3 {[%emt 0:01:48]} d6 {[%emt 0:01:58]} 18. Rhe1 {[%emt 0:02:47]} Kd7 {[%emt 0:04:33]} 19. c5 {[%emt 0:05:20]} bxc5 {[%emt 0:07:09]} 20. bxc5 {[%emt 0:00:49]} Rb8 {[%emt 0:02:05]} 21. cxd6 {[%emt 0:01:16]} exd6 {[%emt 0:02:42]} 22. Bb5 {[%emt 0:01:48]} Kc7 {[%emt 0:03:04]} 23. Bxc6 {[%emt 0:02:56]} Bxc6 {[%emt 0:02:07]} 24. Rxb8 Kxb8 {[%emt 0:00:01]} 25. e5 {[%emt 0:02:09]} dxe5 {[%emt 0:01:15]} 26. Kf1 {[%emt 0:02:18]} Bxf3 {[%emt 0:01:15]} 27. gxf3 {[%emt 0:00:06]} Nd5 {[%emt 0:02:10]} 28. Kg2 {[%emt 0:00:59]} g5 {[%emt 0:01:12]} 29. Rb1+ {[%emt 0:02:46]} Ka7 {[%emt 0:01:20]} 30. Kh2 {[%emt 0:02:04]} h5 {[%emt 0:01:00]} 31. Rd1 {[%emt 0:01:05]} Nb6 {[%emt 0:01:13]} 32. Rd8 {[%emt 0:00:54]} e4 {[%emt 0:05:16]} 33. fxe4 {[%emt 0:00:28]} Be5+ {[%emt 0:01:15]} 34. Kg2 f6 {[%emt 0:00:17]} 35. h4 {[%emt 0:01:52]} gxh4 {[%emt 0:02:05]} 36. Rh8 {[%emt 0:00:22]} Bf4 {[%emt 0:00:44]} 37. Rxh5 {[%emt 0:00:52]} Bg5 {[%emt 0:00:02]} 38. e5 {[%emt 0:01:12]} Nd5 {[%emt 0:02:21]} 39. Rh7+ {[%emt 0:04:54]} Kb6 {[%emt 0:02:33]} 40. exf6 {[%emt 0:00:29]} Bxf6 {[%emt 0:03:50]} 41. a4 {[%emt 0:02:10]} Nc3 {[%emt 0:05:03]} 42. Rh6 {[%emt 0:00:23]} Nd5 {[%emt 0:00:10]} 43. a5+ {[%emt 0:00:09]} Kxa5 {[%emt 0:03:16]} 44. Rh5 {[%emt 0:00:06]} Kb4 45. Rxd5 {[%emt 0:00:20]} Kc4 {[%emt 0:02:14]} 46. Rd7 {[%emt 0:00:12]} Bd4 {[%emt 0:00:49]} 47. Rh7 {[%emt 0:00:35]} Bf6 {[%emt 0:00:47]} 48. Rf7 {[%emt 0:00:51]} Be5 {[%emt 0:01:05]} 49. Kh3 {[%emt 0:01:49]} Bg3 {[%emt 0:00:53]} 50. Rf4+ 1/2-1/2

[Event "FRA-ch Youth U12 2018"]
[Site "Agen"]
[Date "2018.04.17"]
[Round "4"]
[White "Pentcheff, Laura"]
[Black "Stephan, Chloe"]
[Result "1-0"]
[ECO "D02"]
[WhiteElo "1512"]
[BlackElo "1175"]
[Annotator "NA"]
[PlyCount "82"]
[EventDate "2018.??.??"]
[EventType "swiss"]
[EventCountry "FRA"]
[SourceTitle "playchess.com"]
[Source "ChessBase"]
[SourceQuality "1"]
[TimeControl "5400+30"]

1. d4 {[%emt 0:00:00]} d5 {[%emt 0:00:12]} 2. Nf3 {[%emt 0:00:00]} Nf6 {[%emt 0:00:29]} 3. g3 {[%emt 0:00:00]} Bg4 {[%emt 0:00:30]} 4. Bg2 {[%emt 0:00:13]} e6 {[%emt 0:00:53]} 5. O-O {[%emt 0:00:16]} Be7 {[%emt 0:00:22]} 6. c4 {[%emt 0:00:19]} c6 {[%emt 0:00:24]} 7. Nc3 {[%emt 0:00:24]} O-O {[%emt 0:00:51]} 8. Qb3 {[%emt 0:09:04]} Qb6 {[%emt 0:00:22]} 9. c5 {[%emt 0:02:32]} Qc7 {[%emt 0:07:27]} 10. Bf4 {[%emt 0:02:06]} Qc8 {[%emt 0:01:23]} 11. Ne5 {[%emt 0:07:01]} Bf5 {[%emt 0:01:15]} 12. Rfd1 {[%emt 0:12:55]} Nbd7 {[%emt 0:07:30]} 13. Nd3 {[%emt 0:00:25]} b6 {[%emt 0:00:53]} 14. cxb6 {[%emt 0:01:50]} axb6 {[%emt 0:01:15]} 15. Ne5 {[%emt 0:05:44]} c5 {[%emt 0:03:35]} 16. Nxd7 {[%emt 0:02:22]} Qxd7 {[%emt 0:09:08]} 17. Qxb6 {[%emt 0:02:51]} Rfc8 {[%emt 0:04:27]} 18. Qb5 {[%emt 0:04:31]} Qd8 {[%emt 0:03:16]} 19. e4 {[%emt 0:04:52]} dxe4 {[%emt 0:00:44]} 20. dxc5 {[%emt 0:00:12]} Qa5 {[%emt 0:02:31]} 21. Qxa5 {[%emt 0:00:29]} Rxa5 {[%emt 0:00:05]} 22. b4 {[%emt 0:00:15]} Ra3 {[%emt 0:05:08]} 23. Nb5 {[%emt 0:01:41]} Ra4 {[%emt 0:02:13]} 24. a3 {[%emt 0:01:27]} Bg4 {[%emt 0:06:43]} 25. Nd6 {[%emt 0:03:21]} Rd8 {[%emt 0:06:10]} 26. Re1 {[%emt 0:07:04]} Nd5 {[%emt 0:05:07]} 27. Nb7 {[%emt 0:01:48]} Re8 {[%emt 0:03:07]} 28. Rxe4 {[%emt 0:04:43]} f5 {[%emt 0:05:10]} 29. Rxe6 {[%emt 0:01:40]} Nxf4 {[%emt 0:04:55]} 30. gxf4 {[%emt 0:00:12]} Kf7 {[%emt 0:02:28]} 31. Rae1 {[%emt 0:01:58]} Raa8 {[%emt 0:03:24]} 32. Rxe7+ {[%emt 0:01:12]} Rxe7 {[%emt 0:00:33]} 33. Nd6+ {[%emt 0:00:04]} Kf8 {[%emt 0:01:17]} 34. Rxe7 {[%emt 0:00:09]} Kxe7 {[%emt 0:01:02]} 35. Bxa8 {[%emt 0:00:08]} Kd7 {[%emt 0:00:28]} 36. Kg2 {[%emt 0:01:08]} h6 {[%emt 0:01:25]} 37. f3 {[%emt 0:00:23]} Bh5 {[%emt 0:00:14]} 38. Nxf5 {[%emt 0:00:06]} g6 {[%emt 0:00:57]} 39. Ng7 {[%emt 0:00:11]} Ke7 {[%emt 0:00:21]} 40. Nxh5 {[%emt 0:00:10]} gxh5 {[%emt 0:00:20]} 41. Kh3 {[%emt 0:00:12]} Ke8 1-0

[Event "FRA-ch Youth U12 2018"]
[Site "Agen"]
[Date "2018.04.17"]
[Round "4"]
[White "Milojevic-Daim, Lola-Shaina"]
[Black "Cornileau, Juliette"]
[Result "0-1"]
[ECO "B23"]
[WhiteElo "1316"]
[BlackElo "1654"]
[Annotator "NA"]
[PlyCount "110"]
[EventDate "2018.??.??"]
[EventType "swiss"]
[EventCountry "FRA"]
[SourceTitle "playchess.com"]
[Source "ChessBase"]
[SourceQuality "1"]
[TimeControl "5400+30"]

1. e4 {[%emt 0:00:00]} c5 {[%emt 0:00:05]} 2. Nc3 {[%emt 0:00:00]} Nc6 {[%emt 0:00:11]} 3. Nge2 {[%emt 0:00:18]} e6 {[%emt 0:00:38]} 4. g3 {[%emt 0:00:27]} Nf6 {[%emt 0:00:42]} 5. Bg2 {[%emt 0:00:25]} Be7 {[%emt 0:00:42]} 6. d3 {[%emt 0:00:50]} d5 {[%emt 0:02:57]} 7. exd5 {[%emt 0:02:05]} exd5 {[%emt 0:00:59]} 8. Nf4 {[%emt 0:01:10]} d4 {[%emt 0:03:12]} 9. Ncd5 {[%emt 0:01:02]} Nxd5 {[%emt 0:00:52]} 10. Nxd5 {[%emt 0:00:17]} Be6 {[%emt 0:02:42]} 11. Nf4 {[%emt 0:00:55]} Qd7 {[%emt 0:02:31]} 12. O-O {[%emt 0:03:21]} O-O {[%emt 0:01:42]} 13. Re1 {[%emt 0:01:06]} Bd6 {[%emt 0:04:07]} 14. Nxe6 fxe6 {[%emt 0:00:57]} 15. Bxc6 {[%emt 0:03:59]} bxc6 {[%emt 0:00:53]} 16. Bd2 {[%emt 0:05:03]} e5 {[%emt 0:02:30]} 17. c3 {[%emt 0:05:51]} Qf5 {[%emt 0:02:23]} 18. Qe2 {[%emt 0:01:46]} Rab8 {[%emt 0:04:52]} 19. b3 {[%emt 0:04:41]} Qf3 {[%emt 0:02:22]} 20. cxd4 {[%emt 0:05:48]} cxd4 {[%emt 0:01:09]} 21. Qf1 {[%emt 0:03:44]} Rf5 {[%emt 0:02:28]} 22. Rac1 {[%emt 0:04:34]} c5 {[%emt 0:00:51]} 23. Rc2 {[%emt 0:02:03]} Rbf8 {[%emt 0:03:33]} 24. Bc1 {[%emt 0:01:02]} h5 {[%emt 0:03:45]} 25. Re4 {[%emt 0:04:37]} g5 {[%emt 0:16:06]} 26. Qe2 {[%emt 0:11:04]} g4 {[%emt 0:03:57]} 27. Ba3 {[%emt 0:06:38]} Rc8 {[%emt 0:06:31]} 28. Rc4 {[%emt 0:05:37]} a5 {[%emt 0:06:08]} 29. b4 {[%emt 0:04:55]} axb4 {[%emt 0:01:52]} 30. Bxb4 {[%emt 0:00:19]} Rb8 {[%emt 0:01:18]} 31. Be1 {[%emt 0:12:32]} Rb1 {[%emt 0:02:49]} 32. Ra4 {[%emt 0:01:56]} Qxe2 {[%emt 0:03:16]} 33. Rxe2 {[%emt 0:00:06]} Rf3 {[%emt 0:00:56]} 34. Ra3 {[%emt 0:00:10]} Rd1 {[%emt 0:00:25]} 35. Ra8+ {[%emt 0:01:07]} Kf7 {[%emt 0:00:26]} 36. Kf1 {[%emt 0:00:43]} Rdxd3 {[%emt 0:02:27]} 37. Rb2 {[%emt 0:00:16]} Ra3 {[%emt 0:01:49]} 38. Rb7+ {[%emt 0:00:34]} Kf6 {[%emt 0:02:58]} 39. Rd8 {[%emt 0:00:21]} Ra6 {[%emt 0:01:53]} 40. Rh8 {[%emt 0:01:04]} e4 {[%emt 0:05:29]} 41. Rxh5 {[%emt 0:01:57]} d3 {[%emt 0:00:49]} 42. Rh6+ {[%emt 0:00:35]} Ke5 {[%emt 0:01:46]} 43. Bd2 {[%emt 0:01:13]} Kd5 {[%emt 0:02:24]} 44. Rd7 {[%emt 0:01:02]} Kc6 {[%emt 0:00:50]} 45. Rg7 {[%emt 0:00:57]} Kb5 {[%emt 0:01:00]} 46. Rxg4 {[%emt 0:00:44]} Rxa2 {[%emt 0:00:40]} 47. Rxd6 {[%emt 0:01:44]} Rxd2 {[%emt 0:00:04]} 48. Rf4 {[%emt 0:00:09]} Rdxf2+ {[%emt 0:00:14]} 49. Ke1 {[%emt 0:00:17]} Rxf4 {[%emt 0:00:23]} 50. gxf4 {[%emt 0:00:04]} Rxf4 {[%emt 0:00:06]} 51. Kd2 {[%emt 0:00:16]} c4 {[%emt 0:00:43]} 52. Kc3 {[%emt 0:00:38]} e3 {[%emt 0:00:27]} 53. Rd5+ {[%emt 0:00:28]} Kc6 {[%emt 0:00:15]} 54. Re5 {[%emt 0:00:07]} e2 {[%emt 0:00:17]} 55. Kd2 {[%emt 0:00:17]} Rf1 {[%emt 0:00:17]} 0-1